bitfinex/quotes_SOLUSD_20240811
["timestamp","ask_amount","ask_price","bid_price","bid_amount"]
[1723348006040,20.50196,156.04,156.03,0.3356711]
[1723348006266,0.50196,156.04,156.03,0.3356711]
[1723348006970,6.4057,156.11,156.03,0.3356711]
[1723348007267,11.43013598,156.13,156.03,0.3356711]
[1723348007465,6.4063,156.1,156.03,0.3356711]
[1723348007641,6.407,156.08,156.03,0.3356711]
[1723348007845,6.4074,156.07,156.03,0.3356711]
[1723348008365,20.0,156.06,156.03,0.3356711]
[1723348008576,20.0,156.07,156.03,0.3356711]
[1723348008753,45.50196,156.06,156.03,0.3356711]
[1723348015369,6.53409,156.04,156.03,0.3356711]
[1723348015573,71.78507,156.04,156.03,0.3356711]
[1723348015865,71.91056,156.04,156.03,0.3356711]
[1723348016059,65.50196,156.04,156.03,0.3356711]
[1723348016268,45.50196,156.04,156.03,0.3356711]
[1723348016472,65.50196,156.04,156.03,0.3356711]
[1723348017063,27.55,156.1,156.03,0.3356711]
[1723348017270,20.0,156.09,156.03,0.3356711]
[1723348018451,26.4065,156.09,156.03,0.3356711]
[1723348018648,20.0,156.09,156.03,0.3356711]
[1723348018843,6.407,156.08,156.03,0.3356711]
[1723348019067,6.67241356,156.1,156.04,27.55]
[1723348019274,6.4033,156.17,156.06,27.55]
[1723348019578,27.55,156.18,156.06,27.55]
[1723348019779,34.21706383,156.18,156.06,27.55]
[1723348019988,27.55,156.16,156.04,44.021]
[1723348020658,6.4057,156.11,156.04,44.021]
[1723348020860,6.4053,156.12,156.04,16.471]
[1723348021175,6.4049,156.13,156.04,16.471]
[1723348021381,6.4065,156.1,156.04,16.471]
[1723348021680,0.12549,156.08,156.04,16.471]
[1723348021841,0.25098,156.08,156.04,16.471]
[1723348022046,0.25098,156.07,156.04,16.471]
[1723348022245,0.12549,156.07,156.04,16.471]
[1723348022445,0.25098,156.07,156.04,16.471]
[1723348022665,0.12549,156.06,156.04,16.471]
[1723348022868,0.12549,156.09,156.04,16.471]
[1723348023082,0.12549,156.08,156.04,16.471]
[1723348023242,0.12549,156.08,156.04,22.8795]
[1723348023450,0.12549,156.08,156.04,16.471]
[1723348023674,0.12549,156.08,156.03,0.3356711]
[1723348023969,27.67549,156.08,156.03,0.3356711]
[1723348024286,6.53329,156.06,156.03,0.3356711]
[1723348024974,0.12549,156.04,156.03,0.3356711]
[1723348025277,20.37647,156.05,156.03,0.3356711]
[1723348025649,0.12549,156.04,156.03,0.3356711]
[1723348026279,0.37647,156.05,156.03,0.3356711]
[1723348026579,16.0113,156.14,156.03,0.3356711]
[1723348026750,6.4061,156.11,156.05,6.4079]
[1723348026951,27.55,156.13,156.04,16.0211]
[1723348027687,0.25098,156.12,156.04,16.0211]
[1723348027853,6.4075,156.07,156.03,0.3356711]
[1723348028053,27.67549,156.11,156.03,0.3356711]
[1723348028054,0.12549,156.08,156.03,0.3356711]
[1723348028267,20.37647,156.08,156.03,6.7444711]
[1723348028571,26.78347,156.08,156.03,0.3356711]
[1723348028776,0.25098,156.07,156.03,0.3356711]
[1723348029892,0.12549,156.05,156.03,0.3356711]
[1723348030065,0.25098,156.05,156.03,0.3356711]
[1723348031768,45.25098,156.05,156.03,0.3356711]
[1723348031971,0.37647,156.04,156.03,0.3356711]
[1723348032264,0.50196,156.04,156.03,0.3356711]
[1723348035087,6.407,156.08,156.03,0.3356711]
[1723348035295,20.0,156.07,156.03,6.7445711]
[1723348035598,20.0,156.07,156.03,0.3356711]
[1723348036571,20.0,156.08,156.03,0.3356711]
[1723348036772,0.12549,156.06,156.03,0.3356711]
[1723348036973,0.25098,156.06,156.03,0.3356711]
[1723348039803,0.12549,156.04,156.03,0.3356711]
[1723348040597,0.25098,156.04,156.03,0.3356711]
[1723348040805,0.50196,156.04,156.03,0.3356711]
[1723348041995,26.407,156.08,156.03,0.3356711]
[1723348042209,37.59306153,156.11,156.03,16.3574711]
[1723348042376,34.90669416,156.15,156.04,27.55]
[1723348042581,34.90669416,156.15,156.08,6.4066]
[1723348042582,27.55,156.15,156.08,6.4066]
[1723348042800,6.4049,156.13,156.07,22.4248]
[1723348043473,6.4033,156.17,156.09,16.0155]
[1723348043693,34.90669416,156.19,156.09,16.0155]
[1723348043887,6.4045,156.14,156.08,29.1214]
[1723348044072,6.4041,156.15,156.09,6.4065]
[1723348044883,6.4041,156.15,156.1,6.4061]
[1723348045080,33.9536,156.17,156.1,6.4061]
[1723348045304,20.0,156.16,156.1,6.4061]
[1723348045519,20.0,156.16,156.08,38.7311]
[1723348045806,37.23214413,156.21,156.14,6.4041]
[1723348046018,27.55,156.21,156.14,6.4041]
[1723348046185,6.4024,156.19,156.13,6.4048]
[1723348046683,6.4024,156.19,156.14,6.4044]
[1723348046897,6.4024,156.19,156.13,6.4049]
[1723348047901,45.25098,156.18,156.13,6.4049]
[1723348048913,0.12549,156.19,156.14,22.4155]
[1723348049079,0.12549,156.18,156.14,22.4155]
[1723348049281,0.25098,156.18,156.14,22.4155]
[1723348049683,0.12549,156.18,156.14,22.4155]
[1723348049884,0.25098,156.19,156.14,22.4155]
[1723348050104,0.25098,156.18,156.14,22.4155]
[1723348050305,267.54268057,156.24,156.19,6.4024]
[1723348050513,6.4005,156.24,156.18,6.4028]
[1723348050813,6.4008,156.23,156.18,6.4028]
[1723348051102,6.4008,156.23,156.17,28.665]
[1723348052708,0.12549,156.21,156.17,28.665]
[1723348053004,0.12549,156.21,156.18,6.4027]
[1723348053204,0.25098,156.22,156.19,6.4021]
[1723348053511,33.9491,156.28,156.22,6.4011]
[1723348053707,6.3992,156.27,156.22,6.4011]
[1723348054209,6.3992,156.27,156.21,6.4016]
[1723348056691,6.3987,156.29,156.23,6.4007]
[1723348056885,37.58209256,156.32,156.21,16.0031]
[1723348056886,6.398,156.3,156.24,6.4003]
[1723348057286,6.3975,156.32,156.26,6.3995]
[1723348057694,27.55,156.36,156.28,6.3987]
[1723348057914,27.55,156.34,156.26,6.2543]
[1723348058118,27.55,156.32,156.26,6.2543]
[1723348058333,27.55,156.3,156.22,16.4604]
[1723348058696,0.12549,156.26,156.22,22.8615]
[1723348058892,0.25098,156.26,156.22,22.8615]
[1723348059119,0.25098,156.26,156.23,6.4007]
[1723348059423,0.12549,156.26,156.23,6.4007]
[1723348059615,0.12549,156.28,156.23,6.4007]
[1723348059827,6.64968,156.28,156.23,6.4007]
[1723348060013,0.25098,156.27,156.22,22.8615]
[1723348060236,0.12549,156.26,156.22,22.8615]
[1723348060546,0.12549,156.26,156.22,16.4604]
[1723348060844,0.25098,156.26,156.22,16.4604]
[1723348061012,0.12549,156.25,156.22,16.4604]
[1723348061211,0.25098,156.25,156.22,16.4604]
[1723348061619,0.25098,156.25,156.22,22.8615]
[1723348062324,0.12549,156.24,156.22,22.8615]
[1723348062530,0.25098,156.25,156.22,22.8615]
[1723348062842,0.37647,156.26,156.22,22.8615]
[1723348063045,6.77597,156.26,156.22,16.4604]
[1723348064251,0.37647,156.26,156.22,16.4604]
[1723348064454,0.37647,156.26,156.22,22.8615]
[1723348064651,45.37647,156.26,156.22,22.8615]
[1723348064814,45.37647,156.26,156.23,6.4007]
[1723348065327,45.37647,156.26,156.24,6.4003]
[1723348065720,45.37647,156.26,156.23,22.4026]
[1723348066038,0.12549,156.25,156.23,22.4026]
[1723348066214,28.448,156.3,156.23,16.0019]
[1723348066420,28.448,156.3,156.24,6.4003]
[1723348066625,22.05,156.3,156.25,6.3997]
[1723348066941,6.397,156.33,156.27,6.3991]
[1723348067449,6.3972,156.32,156.26,6.3995]
[1723348067620,22.05,156.32,156.25,15.999]
[1723348067939,27.56,156.32,156.23,6.4007]
[1723348068143,0.12549,156.29,156.23,6.4007]
[1723348068322,65.37647,156.29,156.23,6.4007]
[1723348068526,71.90026,156.29,156.24,6.4003]
[1723348068832,0.12549,156.28,156.24,16.0002]
[1723348069015,0.12549,156.27,156.25,6.3999]
[1723348069221,0.12549,156.27,156.24,22.4005]
[1723348069964,0.25098,156.27,156.24,22.4005]
[1723348070137,0.12549,156.26,156.24,22.4005]
[1723348070445,0.12549,156.25,156.24,22.4005]
[1723348070935,0.12549,156.28,156.24,22.4005]
[1723348071241,0.50196,156.28,156.25,6.3998]
[1723348071435,0.50196,156.28,156.26,6.3995]
[1723348071933,0.37647,156.28,156.24,16.0002]
[1723348072239,0.25098,156.28,156.27,15.9979]
[1723348072617,0.37647,156.28,156.27,15.9979]
[1723348072938,0.37647,156.28,156.27,22.397]
[1723348075349,26.397,156.33,156.27,22.397]
[1723348075651,45.50196,156.32,156.27,22.397]
[1723348075830,6.3976,156.31,156.25,6.3996]
[1723348076031,45.50196,156.3,156.25,6.3996]
[1723348076228,51.89986,156.3,156.25,6.3996]
[1723348076745,45.50196,156.3,156.25,6.3996]
[1723348078257,45.50196,156.3,156.24,22.4012]
[1723348078551,0.12549,156.28,156.24,22.4012]
[1723348078748,6.3996,156.26,156.22,16.4604]
[1723348078940,45.50196,156.28,156.22,16.4604]
[1723348078941,0.12549,156.24,156.22,16.4604]
[1723348079139,0.12549,156.24,156.21,22.4051]
[1723348079337,0.12549,156.24,156.18,16.5777]
[1723348079338,27.68549,156.24,156.18,16.5777]
[1723348079528,27.68549,156.22,156.18,16.5777]
[1723348079722,0.12549,156.2,156.18,16.5777]
[1723348080053,0.12549,156.2,156.15,6.4037]
[1723348080227,20.12549,156.2,156.15,6.4037]
[1723348080424,0.12549,156.18,156.15,6.4037]
[1723348080755,6.52829,156.18,156.13,38.0795]
[1723348080944,27.68549,156.16,156.1,16.0153]
[1723348081254,0.12549,156.15,156.14,6.4044]
[1723348081426,0.50196,156.15,156.14,6.4044]
[1723348081927,0.12549,156.14,156.13,6.4048]
[1723348082453,0.12549,156.14,156.12,16.0123]
[1723348082454,0.12549,156.14,156.12,22.4175]
[1723348082654,0.12549,156.14,156.09,15.9154]
[1723348082832,0.12549,156.14,156.11,6.4056]
[1723348083026,0.12549,156.14,156.12,6.4053]
[1723348083350,0.12549,156.14,156.13,6.4049]
[1723348083525,0.37647,156.15,156.13,22.4171]
[1723348083725,0.50196,156.15,156.14,6.4045]
[1723348084447,0.50196,156.15,156.13,16.0122]
[1723348084650,0.50196,156.15,156.13,22.417]
[1723348086353,0.12549,156.14,156.13,16.0122]
[1723348086733,0.12549,156.14,156.11,6.4057]
[1723348087426,0.12549,156.14,156.1,22.4213]
[1723348088153,0.12549,156.14,156.11,6.4056]
[1723348089861,0.12549,156.14,156.1,16.0152]
[1723348090249,42.21549,156.14,156.07,16.0182]
[1723348090569,0.12549,156.12,156.07,16.0182]
[1723348090861,48.62079,156.12,156.07,16.0182]
[1723348091033,45.25098,156.11,156.07,16.0182]
[1723348091229,0.25098,156.1,156.07,16.0182]
[1723348091433,0.25098,156.09,156.08,6.4069]
[1723348091637,0.50196,156.09,156.08,6.4069]
[1723348092537,0.12549,156.08,156.04,31.9367]
[1723348092775,0.25098,156.08,156.04,31.9367]
[1723348093068,0.12549,156.06,156.04,38.3452]
[1723348093229,0.25098,156.06,156.05,6.4082]
[1723348093437,0.12549,156.06,156.05,6.4082]
[1723348094253,0.12549,156.06,156.04,31.9367]
[1723348094462,0.37647,156.06,156.04,31.9367]
[1723348094665,0.12549,156.06,156.04,38.3449]
[1723348095544,0.12549,156.06,156.05,6.4082]
[1723348097269,6.4049,156.13,156.08,6.4069]
[1723348097563,28.4948,156.14,156.06,16.0184]
[1723348098066,28.4938,156.16,156.09,16.0159]
[1723348098665,6.4032,156.17,156.09,16.0159]
[1723348099044,22.09,156.18,156.09,16.0159]
[1723348099245,6.4045,156.14,156.09,16.0159]
[1723348099465,6.4041,156.15,156.09,16.0159]
[1723348099666,36.36816245,156.21,156.11,16.0134]
[1723348099667,22.09,156.18,156.11,16.0134]
[1723348099853,28.492,156.2,156.14,6.4041]
[1723348100059,28.1549,156.22,156.11,28.5654]
[1723348100370,28.4912,156.22,156.16,22.4127]
[1723348100574,22.09,156.2,156.13,16.0122]
[1723348100745,6.4034,156.17,156.11,12.8811]
[1723348101359,28.4929,156.18,156.12,6.4052]
[1723348101547,20.0,156.17,156.11,22.4888]
[1723348101758,0.37647,156.16,156.13,6.4048]
[1723348102369,0.37647,156.16,156.14,6.4042]
[1723348102755,0.37647,156.16,156.15,6.404]
[1723348102971,0.50196,156.16,156.15,6.404]
[1723348103158,20.0,156.19,156.15,6.404]
[1723348103473,20.0,156.19,156.12,6.4049]
[1723348103678,22.09,156.18,156.12,6.4049]
[1723348103860,20.0,156.17,156.12,6.4049]
[1723348104478,0.50196,156.16,156.11,6.4057]
[1723348104672,6.4041,156.15,156.1,38.5839]
[1723348104877,0.12549,156.13,156.1,16.1627]
[1723348105170,0.25098,156.13,156.1,16.1627]
[1723348105375,0.12549,156.11,156.08,6.4066]
[1723348105549,0.25098,156.11,156.08,6.4066]
[1723348106175,0.12549,156.12,156.11,6.4057]
[1723348106472,0.12549,156.17,156.1,16.0153]
[1723348106666,0.12549,156.14,156.1,16.0153]
[1723348106977,20.37647,156.14,156.08,6.4068]
[1723348107155,0.12549,156.13,156.08,6.4068]
[1723348107359,0.12549,156.13,156.07,6.4754]
[1723348107360,6.53079,156.12,156.07,12.8827]
[1723348107570,20.25098,156.11,156.07,12.8827]
[1723348107785,0.25098,156.11,156.09,16.0159]
[1723348107974,0.12549,156.12,156.11,6.4057]
[1723348108262,0.37647,156.12,156.11,6.4057]
[1723348108882,0.37647,156.12,156.1,6.406]
[1723348109277,0.37647,156.12,156.09,22.4223]
[1723348109480,6.78177,156.12,156.07,6.4754]
[1723348109679,6.4057,156.11,156.07,6.4754]
[1723348109980,0.37647,156.1,156.06,16.1627]
[1723348110282,20.0,156.15,156.08,16.0167]
[1723348110455,0.50196,156.14,156.1,6.4058]
[1723348110658,0.12549,156.13,156.11,6.4057]
[1723348111385,0.12549,156.13,156.1,6.406]
[1723348111582,0.12549,156.13,156.09,6.4065]
[1723348112969,20.12549,156.13,156.09,6.4065]
[1723348113197,0.25098,156.12,156.09,6.4065]
[1723348115987,0.25098,156.12,156.08,22.4236]
[1723348116379,0.25098,156.12,156.09,6.4065]
[1723348116567,0.12549,156.12,156.09,6.4065]
[1723348116768,0.37647,156.13,156.09,6.4065]
[1723348117895,0.25098,156.13,156.09,6.4065]
[1723348118293,6.4029,156.18,156.11,16.0136]
[1723348118770,6.4029,156.18,156.11,17.29455694]
[1723348118971,6.4037,156.16,156.11,22.4189]
[1723348119601,0.12549,156.15,156.12,6.4052]
[1723348119783,0.37647,156.16,156.12,6.4052]
[1723348120098,6.78017,156.16,156.11,22.4193]
[1723348120900,0.37647,156.16,156.12,6.4053]
[1723348121403,0.37647,156.16,156.1,6.4754]
[1723348121775,6.4043,156.15,156.1,6.4754]
[1723348122078,6.4043,156.15,156.1,12.8813]
[1723348122289,6.78017,156.16,156.11,6.4057]
[1723348122695,6.78017,156.16,156.1,12.8815]
[1723348122696,0.12549,156.14,156.1,12.8815]
[1723348122903,0.37647,156.14,156.1,6.4754]
[1723348123880,6.4055,156.12,156.07,6.4073]
[1723348124074,0.12549,156.11,156.07,6.4073]
[1723348124282,0.37647,156.11,156.07,6.4073]
[1723348126507,0.37647,156.11,156.08,6.4069]
[1723348126687,0.12549,156.11,156.08,6.4069]
[1723348126997,0.25098,156.11,156.08,6.4069]
[1723348129006,0.25098,156.11,156.07,22.4248]
[1723348129406,0.25098,156.11,156.08,6.4068]
[1723348129586,0.25098,156.11,156.07,22.4249]
[1723348130697,0.12549,156.1,156.07,16.0176]
[1723348130886,0.50196,156.1,156.07,16.0176]
[1723348131209,0.12549,156.12,156.08,6.4065]
[1723348131380,0.12549,156.11,156.07,22.4249]
[1723348133003,0.12549,156.11,156.08,6.4069]
[1723348133306,0.37647,156.12,156.08,6.4069]
[1723348133604,0.12549,156.11,156.08,6.4069]
[1723348134002,0.37647,156.12,156.08,6.4069]
[1723348135028,6.78207,156.12,156.07,16.0176]
[1723348135196,0.12549,156.1,156.07,16.0176]
[1723348135521,6.65708,156.1,156.05,6.4081]
[1723348135726,0.12549,156.08,156.04,16.0212]
[1723348136014,6.78347,156.08,156.04,16.0212]
[1723348136191,0.37647,156.08,156.04,22.4298]
[1723348136607,0.37647,156.08,156.05,6.4081]
[1723348138803,0.37647,156.08,156.04,16.0212]
[1723348138804,6.53139,156.11,156.06,22.4263]
[1723348139127,6.53169,156.1,156.05,6.4081]
[1723348139442,0.25098,156.09,156.05,6.4081]
[1723348139718,28.5157,156.12,156.06,16.0194]
[1723348140107,6.4057,156.11,156.06,22.4271]
[1723348140306,48.5161,156.1,156.05,6.4081]
[1723348140529,20.0,156.1,156.06,6.4077]
[1723348141020,0.12549,156.09,156.07,6.4073]
[1723348141205,20.0,156.1,156.07,6.4073]
[1723348141206,0.12549,156.1,156.09,6.4065]
[1723348141405,0.25098,156.1,156.07,16.0177]
[1723348142209,20.0,156.13,156.09,6.4065]
[1723348142608,26.4049,156.13,156.08,6.4068]
[1723348142907,26.4049,156.13,156.07,16.0177]
[1723348142908,6.4053,156.12,156.07,22.425]
[1723348143497,0.12549,156.12,156.08,6.4066]
[1723348143707,0.50196,156.12,156.08,6.4066]
[1723348143922,0.37647,156.12,156.09,6.4064]
[1723348144108,0.37647,156.12,156.08,6.4069]
[1723348144705,51.78177,156.12,156.08,6.4069]
[1723348144910,0.37647,156.12,156.08,6.4069]
[1723348145722,0.12549,156.11,156.08,6.4069]
[1723348146029,0.12549,156.11,156.09,16.0156]
[1723348146030,0.37647,156.11,156.09,16.0156]
[1723348146229,0.25098,156.11,156.09,22.4221]
[1723348146623,0.25098,156.11,156.04,22.11]
[1723348146930,0.25098,156.1,156.06,16.0191]
[1723348147106,0.12549,156.08,156.04,6.4085]
[1723348147306,0.25098,156.08,156.04,6.4085]
[1723348147520,0.25098,156.07,156.04,6.4085]
[1723348147830,7.80092646,156.23,156.09,16.0811]
[1723348147999,6.65758,156.22,156.17,6.403]
[1723348148205,6.65758,156.22,156.18,6.4028]
[1723348148629,28.76758,156.22,156.16,32.0897]
[1723348148824,22.11,156.22,156.14,6.5164]
[1723348149020,22.11,156.22,156.14,12.9207]
[1723348149232,22.11,156.22,156.14,22.5266]
[1723348149617,22.11,156.22,156.17,6.4032]
[1723348149816,6.4016,156.21,156.15,6.4038]
[1723348150011,6.4016,156.21,156.14,22.5266]
[1723348150330,22.11,156.22,156.17,6.403]
[1723348151036,22.11,156.22,156.16,6.4036]
[1723348151434,28.5112,156.22,156.16,6.4036]
[1723348151641,45.50196,156.21,156.16,6.4036]
[1723348151851,6.52789,156.2,156.14,22.4146]
[1723348152137,45.37647,156.19,156.14,22.4146]
[1723348152322,0.12549,156.18,156.14,22.4146]
[1723348152525,0.12549,156.18,156.15,6.404]
[1723348156437,0.12549,156.18,156.16,6.4036]
[1723348156943,0.12549,156.18,156.15,6.404]
[1723348162436,0.12549,156.18,156.15,11.04]
[1723348164747,0.12549,156.18,156.16,6.4036]
[1723348167119,0.12549,156.18,156.14,22.4146]
[1723348167316,6.4033,156.17,156.12,22.4861]
[1723348167543,0.37647,156.16,156.12,22.4861]
[1723348167749,0.12549,156.15,156.13,6.4049]
[1723348170349,0.12549,156.15,156.14,6.4045]
[1723348171353,0.12549,156.15,156.13,6.4048]
[1723348172353,0.12549,156.15,156.14,6.4045]
[1723348174231,0.12549,156.15,156.13,6.4048]
[1723348174430,6.52959,156.15,156.11,16.0139]
[1723348174740,0.12549,156.13,156.11,16.0139]
[1723348177036,0.12549,156.13,156.11,22.4195]
[1723348181057,294.00973176,156.26,156.11,16.0139]
[1723348181254,6.0319,156.22,156.14,16.0109]
[1723348181455,11.04,156.21,156.14,16.0109]
[1723348181658,6.4032,156.18,156.13,6.4048]
[1723348181838,11.04,156.19,156.12,21.5792]
[1723348181839,6.4033,156.17,156.12,21.5792]
[1723348182759,45.37647,156.16,156.12,21.5792]
[1723348182968,0.25098,156.15,156.12,21.5792]
[1723348183149,0.25098,156.14,156.12,21.5792]
[1723348184866,0.25098,156.13,156.12,6.4052]
[1723348185070,0.37647,156.13,156.12,6.4052]
[1723348185367,0.50196,156.13,156.11,16.014]
[1723348185553,0.50196,156.13,156.11,22.4196]
[1723348186170,0.25098,156.12,156.11,22.4196]
[1723348186364,0.50196,156.12,156.11,22.4196]
[1723348189080,0.50196,156.12,156.11,16.014]
[1723348189250,0.50196,156.12,156.1,6.406]
[1723348189583,0.25098,156.11,156.1,6.406]
[1723348189787,0.50196,156.11,156.1,6.406]
[1723348190280,0.12549,156.15,156.1,16.0146]
[1723348190458,0.37647,156.15,156.1,16.0146]
[1723348190755,0.12549,156.14,156.1,16.0146]
[1723348191076,0.12549,156.13,156.11,6.4057]
[1723348191275,0.25098,156.13,156.11,6.4057]
[1723348191464,0.12549,156.12,156.11,6.4057]
[1723348191781,0.12549,156.12,156.1,16.0146]
[1723348191782,0.12549,156.11,156.1,22.4206]
[1723348192074,0.25098,156.11,156.1,22.4206]
[1723348192275,0.50196,156.11,156.1,22.4206]
[1723348196276,0.12549,156.11,156.1,22.4206]
[1723348196465,0.12549,156.15,156.12,6.4052]
[1723348196651,0.50196,156.15,156.12,6.4052]
[1723348197056,0.50196,156.15,156.11,6.4057]
[1723348197259,0.50196,156.15,156.03,47.5544711]
[1723348197260,0.12549,156.11,156.03,47.5544711]
[1723348197458,0.12549,156.09,156.04,16.0214]
[1723348197755,45.50196,156.09,156.05,6.4078]
[1723348198275,0.50196,156.09,156.05,6.4078]
[1723348199585,0.50196,156.09,156.04,16.0214]
[1723348199764,11.04,156.14,156.06,16.0186]
[1723348200079,6.4049,156.13,156.08,6.4066]
[1723348200286,17.4445,156.14,156.09,6.4065]
[1723348200665,6.405,156.13,156.08,6.4069]
[1723348201275,11.04,156.14,156.06,27.0586]
[1723348201474,6.4057,156.11,156.06,33.4663]
[1723348201653,6.4063,156.1,156.06,16.0186]
[1723348201862,6.4063,156.1,156.04,17.4482]
[1723348201863,17.4463,156.1,156.04,6.4082]
[1723348202063,6.4065,156.09,156.04,6.4082]
[1723348202259,45.25098,156.08,156.04,6.4082]
[1723348202495,0.12549,156.06,156.05,6.4082]
[1723348202665,0.25098,156.07,156.05,6.4082]
[1723348203373,0.12549,156.07,156.06,6.4077]
[1723348203562,0.12549,156.08,156.07,6.4073]
[1723348203758,0.37647,156.08,156.06,16.0193]
[1723348203963,0.12549,156.07,156.06,16.0193]
[1723348204179,0.25098,156.07,156.05,6.4081]
[1723348204463,0.12549,156.06,156.05,6.4081]
[1723348205885,0.12549,156.06,156.03,31.5318711]
[1723348205886,0.12549,156.05,156.03,0.3356711]
[1723348206068,0.37647,156.05,156.03,0.3356711]
[1723348206271,0.25098,156.04,156.03,0.3356711]
[1723348206590,0.50196,156.04,156.03,0.3356711]
[1723348208180,6.91056,156.04,156.03,0.3356711]
[1723348208377,51.91056,156.04,156.03,0.3356711]
[1723348209620,62.95056,156.04,156.03,0.3356711]
[1723348210117,51.91056,156.04,156.03,0.3356711]
[1723348210331,62.95056,156.04,156.03,0.3356711]
[1723348211594,17.4483,156.05,156.03,0.3356711]
[1723348211796,6.4086,156.04,156.03,0.3356711]
[1723348212913,51.78507,156.04,156.03,0.3356711]
[1723348213108,0.12549,155.98,155.95,15.84]
[1723348213314,0.12549,155.97,155.94,15.84]
[1723348213500,0.37647,155.97,155.95,6.4121]
[1723348213697,0.12549,155.96,155.95,6.4121]
[1723348214015,0.25098,155.96,155.95,6.4121]
[1723348214211,0.37647,155.96,155.94,15.84]
[1723348214510,0.37647,155.95,155.94,15.84]
[1723348215393,0.12549,155.94,155.9,15.84]
[1723348215688,0.25098,155.94,155.9,15.84]
[1723348215920,0.12549,155.92,155.89,16.0359]
[1723348216095,0.12549,155.92,155.89,22.4506]
[1723348216096,0.25098,155.92,155.89,22.4506]
[1723348216415,0.12549,155.91,155.89,22.4506]
[1723348216714,0.12549,155.91,155.89,20.4506]
[1723348218014,0.12549,155.93,155.89,14.0359]
[1723348218192,0.12549,155.91,155.87,16.6756711]
[1723348218400,0.25098,155.92,155.87,16.6756711]
[1723348218597,0.12549,155.91,155.88,6.4148]
[1723348218898,0.12549,155.9,155.88,6.4148]
[1723348219812,0.12549,155.9,155.89,6.4147]
[1723348220220,0.12549,155.9,155.87,16.8737711]
[1723348220447,45.25098,155.9,155.87,16.8737711]
[1723348220601,0.12549,155.89,155.87,23.2893711]
[1723348220802,0.12549,155.88,155.87,16.8737711]
[1723348221009,0.25098,155.88,155.87,16.8737711]
[1723348221202,0.37647,155.88,155.87,16.8737711]
[1723348221416,0.25098,155.88,155.87,23.2893711]
[1723348222428,0.12549,155.88,155.87,23.2893711]
[1723348222602,0.12549,155.89,155.88,6.4151]
[1723348222803,0.12549,155.94,155.9,6.4142]
[1723348223008,6.4119,155.96,155.89,16.036]
[1723348223209,6.4119,155.96,155.91,6.4138]
[1723348223405,6.4128,155.94,155.89,22.4507]
[1723348223624,6.4128,155.94,155.87,0.8356711]
[1723348223625,6.4139,155.91,155.87,0.8356711]
[1723348223923,22.15,155.94,155.89,6.4146]
[1723348224126,28.5622,155.96,155.9,6.4142]
[1723348224335,51.66328,155.95,155.9,6.4142]
[1723348224532,22.15,155.98,155.9,16.0349]
[1723348224715,31.50961095,156.0,155.92,6.4135]
[1723348224911,6.4102,156.0,155.94,6.4127]
[1723348225132,22.15,156.03,155.93,38.1825]
[1723348225436,22.15,156.04,155.96,6.4118]
[1723348225648,6.4114,155.97,155.9,16.3487]
[1723348225937,22.15,156.01,155.9,38.4987]
[1723348226240,6.4109,155.99,155.93,6.4129]
[1723348226439,6.4109,155.99,155.94,6.4126]
[1723348226822,22.15,156.03,155.95,16.0306]
[1723348227134,28.1933,156.05,155.95,22.4425]
[1723348227344,6.4102,156.0,155.95,22.4425]
[1723348227726,6.4098,156.01,155.95,22.4425]
[1723348228432,6.4102,156.0,155.95,22.4425]